Cogmind - Beta 13 @@@ ROGUE MODE // 2024.07.08 @ 01:39:46 Player: ThatBishHoly Result: Destroyed by G-47 Trooper with Particle Gun Performance ------------- Evolutions (0) 0 Regions Visited (1) 200 Robots Destroyed (4) 20 Value Destroyed (48) 48 Prototype IDs (0) 0 Alien Tech Used (0) 0 Bonus (0) 0 TOTAL SCORE: 268 Bonus ------- None Cogmind --------- Core Integrity 0/250 Matter 201/300 Energy 100/100 System Corruption 0% Temperature Cool (9) Movement Core (1350) Ox26 Location -10/Materials Parts ------- > --- POWER (1) -------- (None) > --- PROPULSION (2) --- (None) > --- UTILITY (2) ------ Huge Storage Unit > --- WEAPON (2) ------- Light Assault Rifle > --- INVENTORY (25) --- Huge Storage Unit Sensor Array Peak State ------------ > --- POWER ------------ Ion Engine > --- PROPULSION ------- Light Treads Light Treads > --- UTILITY ---------- Small Storage Unit Light Armor Plating > --- WEAPON ----------- Assault Rifle Light Assault Rifle > --- INVENTORY -------- Grenade Launcher [Rating: 7] Favorites ----------- Power Ion Engine Engine Ion Engine Propulsion Light Treads Treads Light Treads Utility Light Armor Plating Storage Huge Storage Unit Protection Light Armor Plating Weapon Assault Rifle Ballistic Gun Assault Rifle Launcher Grenade Launcher Build | -11 -10 ------- Run | Yrd Mat Slots Evolved . | . . Power . | . . Propulsion . | . . Utility . | . . Weapon . | . . Parts Attached 10 | 6 4 Power 1 | 1 . Engine 1 | 1 . Core . | . . Reactor . | . . Propulsion 2 | 2 . Treads 2 | 2 . Leg . | . . Wheel . | . . Hover . | . . Flight . | . . Utility 3 | 1 2 Device . | . . Storage 2 | 1 1 Processor . | . . Hackware . | . . Protection 1 | . 1 Artifact . | . . Weapon 4 | 2 2 Energy Gun . | . . Energy Cannon . | . . Ballistic Gun 3 | 2 1 Ballistic Cannon . | . . Launcher 1 | . 1 Special Weapon . | . . Impact Weapon . | . . Slashing Weapon . | . . Piercing Weapon . | . . Special Melee Weapon . | . . Unidentified Prototypes . | . . Parts Lost 6 | . 6 Power 1 | . 1 Propulsion 2 | . 2 Utility 1 | . 1 Weapon 2 | . 2 Highest Loss Streak 5 | . 5 To Critical Strikes . | . . Average Slot Usage (%) 94 | . 94 Engine 12 | . 12 Treads 26 | . 26 Storage 14 | . 14 Protection 12 | . 12 Ballistic Gun 19 | . 19 Launcher 7 | . 7 Naked Turns . | . . Heaviest Build 93 | 13 93 Greatest Support 40 | 40 40 Greatest Overweight (x) 27 | . 27 Average Overweight (x) . | . . Largest Inventory Capacity 25 | 8 25 Average Capacity 15 | 6 17 Most Carried 5 | 5 3 Average Carried 1 | . 1 Final Capacity 25 | 8 25 Final Carried 2 | . 2 Class Distribution -------------------- 100% | Mutant Dominant Class ---------------- Mutant | -10/Materials Resources | -11 -10 ----------- Run | Yrd Mat Matter Collected 252 | 201 51 Remotely . | . . Salvage Created 59 | . 59 Parts 6 | . 6 Haulers Intercepted 1 | . 1 Recyclers Shooed . | . . Parts Field Recycled . | . . Retrieved Matter . | . . Parts Self-Destructed . | . . Prevented . | . . Kills | -11 -10 ------- Run | Yrd Mat Combat Hostiles Destroyed 2 | . 2 Guns 2 | . 2 Classes Destroyed 3 | . 3 Hauler 1 | . 1 Watcher 1 | . 1 Swarmer 2 | . 2 Best Kill Streak 2 | . 2 Combat Bots Only 2 | . 2 Max Kills in Single Turn 1 | . 1 Gunslinging . | . . Exploded . | . . Melee . | . . Uniques/NPCs Destroyed . | . . Combat | -11 -10 -------- Run | Yrd Mat Hostile Shots Fired 98 | . 98 Missed 25 | . 25 Damage Taken 928 | . 928 Core 251 | . 251 Absorbed by Shields . | . . Core Remaining (%) 100 | 100 . Volleys Fired 14 | . 14 Largest 2 | . 2 Hottest 40 | . 40 Shots Fired 22 | . 22 Gun 16 | . 16 Cannon . | . . Launcher 6 | . 6 Special . | . . Kinetic 16 | . 16 Thermal . | . . Explosive 6 | . 6 Electromagnetic . | . . Robot Hit Streak 6 | . 6 Robot Miss Streak 2 | . 2 Penetration Max . | . . Secondary Targets . | . . Shots Hit Robots 15 | . 15 Core Hits 6 | . 6 Critical Kills . | . . Critical Parts Destroyed . | . . Critical Strikes . | . . Melee Attacks . | . . Impact . | . . Slashing . | . . Piercing . | . . Sneak Attacks . | . . Combat Hostiles . | . . Follow-up Attacks . | . . Damage Inflicted 268 | 6 262 Guns 136 | . 136 Cannons . | . . Explosions 126 | . 126 Melee . | . . Ramming 6 | 6 . Kinetic 136 | . 136 Thermal . | . . Explosive 126 | . 126 Electromagnetic . | . . Impact . | . . Slashing . | . . Piercing . | . . Highest Corruption . | . . Average Corruption . | . . Corruption Purged . | . . Corruption Blocked . | . . Overload Shots . | . . Overflow Damage . | . . Projectiles . | . . Explosions . | . . Melee . | . . Knockbacks . | . . Impact . | . . Kinetic . | . . Secondary . | . . Self-Inflicted Damage 74 | . 74 Shots 4 | . 4 Rammed 3 | 3 . Targets Rammed 3 | 3 . Kicked . | . . Crushed . | . . Highest Temperature 86 | . 86 Average Temperature 38 | . 38 Received Heat Transfer 480 | . 480 Siege Activations . | . . Robots Corrupted . | . . Combat Hostiles . | . . Parts Fried . | . . Impact Corruptions . | . . Robots Melted . | . . Combat Hostiles . | . . Parts Melted . | . . Heat Transferred . | . . Parts Sabotaged . | . . Parts Stolen . | . . Parts Stripped . | . . Power Chain Reactions . | . . Alert | -11 -10 ------- Run | Yrd Mat Peak Influence 116 | . 116 Initial . | . . Average 54 | . 62 Maximum Alert Level . | . . Low Security (%) 100 | 100 100 Level 1 . | . . Level 2 . | . . Level 3 . | . . Level 4 . | . . Level 5 . | . . High Security . | . . Max Security . | . . Squads Dispatched . | . . Investigation . | . . Extermination . | . . Reinforcement . | . . Assault . | . . Garrison . | . . Intercept . | . . Searches Triggered . | . . Construction Impeded . | . . Haulers Reinforced . | . . Active Scanning Responses . | . . Cargo Convoy Interrupts . | . . Stealth | -11 -10 --------- Run | Yrd Mat Distress Signals . | . . Communications Jammed . | . . Distress Signals . | . . Times Spotted 8 | . 8 Peak Tracking Total 5 | . 5 Tactical Retreats 1 | . 1 Traps | -11 -10 ------- Run | Yrd Mat Traps Triggered . | . . Indirectly . | . . Trap Hack Attempts . | . . Triggered . | . . Disarmed . | . . Reprogrammed . | . . Reused . | . . Traps Extracted . | . . Installed . | . . Triggered . | . . Machines | -11 -10 ---------- Run | Yrd Mat Machines Disabled 1 | . 1 Max in Single Turn 1 | . 1 Machines Repaired . | . . Machines Dismantled . | . . Machines Sabotaged . | . . Overloaded Fab Kills . | . . Hacking | -11 -10 --------- Run | Yrd Mat Machines Accessed 1 | . 1 Terminals 1 | . 1 Fabricators . | . . Repair Stations . | . . Recycling Units . | . . Scanalyzers . | . . Garrison Access . | . . Total Hacks 3 | . 3 Successful . | . . Failed 3 | . 3 Catastrophic 1 | . 1 Database Lockouts . | . . Manual . | . . Terminals 3 | . 3 Fabricators . | . . Repair Stations . | . . Recycling Units . | . . Scanalyzers . | . . Garrison Access . | . . Terminal Hacks . | . . Fabricator Hacks . | . . Repair Station Hacks . | . . Recycling Unit Hacks . | . . Scanalyzer . | . . Garrison Access Hacks . | . . Unauthorized Hacks . | . . Terminals . | . . Fabricators . | . . Repair Stations . | . . Recycling Units . | . . Scanalyzers . | . . Garrison Access . | . . Data Cores Recovered . | . . Used . | . . Hacking Detections 1 | . 1 Full Trace Events . | . . Feedback Events . | . . Feedback Blocked . | . . Robot Schematics Acquired . | . . Robots Built . | . . Authchips . | . . Time . | . . Total Robot Build Rating . | . . Part Schematics Acquired . | . . Parts Built . | . . Authchips . | . . Time . | . . Total Part Build Rating . | . . Parts Repaired . | . . Time . | . . Parts Recycled . | . . Recycled Matter . | . . Retrieved Matter . | . . Retrieved Components . | . . Parts Scanalyzed . | . . Part Schematics Acquired . | . . Parts Damaged . | . . Bothacking | -11 -10 ------------ Run | Yrd Mat Used RIF Installer . | . . Robots Hacked . | . . Non-combat . | . . Combat . | . . Robot Hacks Applied . | . . Relay Couplers Released . | . . Fabnet Peak Effective % . | . . Robots Rewired . | . . Allies Hacked . | . . Hacks Repelled . | . . Allies | -11 -10 -------- Run | Yrd Mat Total Allies . | . . Largest Group . | . . Highest-Rated Group . | . . Highest-Rated Ally . | . . Total Orders . | . . Ally Attacks . | . . Total Damage . | . . Kills . | . . Allies Corrupted . | . . Allies Melted . | . . Intel | -11 -10 ------- Run | Yrd Mat Robot Analysis Total . | . . Derelict Logs Recovered . | . . Drone Launches . | . . Drone Recoveries . | . . Exploration | -11 -10 ------------- Run | Yrd Mat Turns Passed 422 | 57 365 Spaces Moved 173 | 32 141 Core 10 | 9 1 Treads 163 | 23 140 Legs . | . . Wheels . | . . Hover . | . . Flight . | . . Fastest Speed 50 | 50 160 Average Speed 212 | 129 231 Slowest Speed 1400 | 160 1400 Overloaded Moves . | . . Propulsion Burnouts . | . . Robots Hopped . | . . Cave-ins Triggered . | . . Exploration Rate (%) 13 | 4 23 Regions Visited 1 Branch Regions . Pre-discovered Areas . | . . Known Exits Taken . | . . Unknown Exits Taken 1 | 1 . Scrap Searched . | . . Spaces Dug . | . . Terrain Destroyed 52 | . 52 Melee . | . . Projectile . | . . AOE 52 | . 52 Terrain Rammed . | . . Walls Destroyed . | . . Machines Disabled . | . . Actions | -11 -10 --------- Run | Yrd Mat Total 211 | 46 165 Wait . | . . Move 172 | 31 141 Hop . | . . Pick Up 11 | 6 5 Fast Attach . | . . Attach 8 | 6 2 Detach . | . . Swap 2 | . 2 Drop 1 | . 1 Fire 14 | . 14 Melee . | . . Ram . | . . Kick . | . . Crush 3 | 3 . Escape Stasis . | . . Rewire . | . . Trap . | . . Miscellaneous . | . . Route ------- -11/Scrapyard -10/Materials History --------- Turn | Location | Event 7 | -11/Scrapyard | Discovered new exit (range 15) 58 | -11/Scrapyard | Entered Materials 319 | -10/Materials | Build established: Mutant 396 | -10/Materials | Core integrity fell below 50% 416 | -10/Materials | Core integrity fell below 20% 423 | -10/Materials | Destroyed by G-47 Trooper with Particle Gun Last Messages --------------- 00262_ The unstable cave ceiling collapses. 00262_ U-05 Engineer builds a Wall. 00263_ T-07 Excavator is excavating. 00295_ Grenade Launcher destroyed. 00298_ S-10 Pest destroyed. 00317_ U-05 Engineer lays Concrete. 00319_ T-07 Excavator is excavating. 00345_ Acquired 11 matter. 00352_ Acquired 15 matter. 00366_ K-01 Serf collects debris. 00375_ Critical hit (Burn: +37). 00376_ K-01 Serf collects debris. 00379_ Critical hit (Burn: +37). 00385_ Ion Engine destroyed. 00387_ Critical hit (Burn: +37). 00391_ Lgt. Treads destroyed. 00392_ K-01 Serf collects debris. 00402_ Lgt. Armor Plating destroyed. 00411_ Lgt. Treads destroyed. 00419_ Assault Rifle destroyed. Map ----- +----------------------------------------------------+ | | | | | | | | | | | | | | | | | | | | | | | | | | | | | | | | | | | | | | | | | | | | | ?????????????????###########?????????????????????? | | ?????????????????# #?????????????????????? | | ?????????????????# ]g #?????????????????????? | | ?????????????????# g @ #?????????????????????? | | ?????????????????+ """t"""g#?????????????????????? | | ?????????? ?????# """ """ #?????????????????????? | | ?????????# # """ """ #?????????????????????? | | ?????????? + #??????????????######## | | ?????????????????# #??????????????# # | | ?????????????????#######+###??????????????# """ # | | ?????????????????????# #????????????### """ # | | ?????????????????????# t #???????????## """ # | | ?????????????????????# =%=+???????????# # | | ?????????????????????# [ #???????????##" """ # | | ?????????????????????# = #????????????# """ + | | ?????????????????????##[[ ##???????????# """ # | | ??????????????????????# =#????????????#### # | | ??????????????????????# +???????????????# """ # | | ??????????????????????# #???????????????# """ # | | ???????????????####???# #???????????????# """ # | | ???????????????# ### #???????????????# # | | ????????????????# # #???????????????######## | | ????????????????# #??????????????????????# | | ???????????????######## #??????????????????????# | | ???????????????# ## ######??????############ | | ???????????????# ####???# # | | ?????????" + #???# | | ???????????????# ##??# = | +----------------------------------------------------+ Best States ------------- Heat Dissipation 25 Energy Generation 10 Energy Capacity 250 Matter Stores 252 Matter Capacity 300 Sight Range 16 Terrain Scan Density 10 Armor Coverage 150 Evasion (%) 40 Recoil Reduction 2 Item Schematics ----------------- None Robot Schematics ------------------ None Fabricated ------------ Nothing Alien Tech Used ----------------- None Achievements -------------- None Challenges ------------ None Game ------ Seed ScanLegArachnoskeleton Manual? 0 Play Time 00:05:47 Cumulative 28.5 hours Start 2024.07.08 @ 01:36:23 End 2024.07.08 @ 01:39:46 Sessions 1 Manual Loads 0 Difficulty Rogue Special Mode None Game No. 90 Rogue 90 Adventurer 0 Explorer 0 Win Type - Total 0 Types 0/0/0/0/0/0/0/0/0 Lore% 17 Gallery% 32 Achievement% 23 Wizard Run 0 Options --------- Layout 1 ASCII 0 Keyboard 0 Movement Arrows Keybinds 0 Fullscreen 1 Font 16/SmallcapsGlow Map View 25x20 Zoom Use 100% Tactical HUD 1 Map Filters NONE Filters NONE Steam SD RUN: ddce6048-7966-45e2-a223-a8e59e6b507d